bitfinex/quotes_SOLUSD_20250902
["timestamp","ask_amount","ask_price","bid_price","bid_amount"]
[1756815929253,1e-08,200.85,200.84,12.81834311]
[1756815929653,1e-08,200.85,200.84,12.96050468]
[1756815929860,1e-08,200.85,200.84,38.96050468]
[1756815930478,1e-08,200.85,200.84,31.8012494]
[1756815930678,1e-08,200.85,200.84,38.96050468]
[1756815932077,1e-08,200.85,200.84,40.95576594]
[1756815932584,1e-08,200.85,200.84,27.99526126]
[1756815932758,1e-08,200.85,200.84,7.15925528]
[1756815932958,1e-08,200.85,200.84,12.13834311]
[1756815933474,1e-08,200.85,200.84,15.62801807]
[1756815933879,1e-08,200.85,200.84,16.30801807]
[1756815934261,1e-08,200.85,200.84,16.45017964]
[1756815935957,1e-08,200.85,200.84,5.8012494]
[1756815936161,1e-08,200.85,200.84,16.45017964]
[1756815939264,1e-08,200.85,200.84,18.44524186]
[1756815940984,1e-08,200.85,200.84,32.04083587]
[1756815941283,0.06,200.9,200.89,10.79109181]
[1756815941484,1e-08,200.9,200.89,55.44894038]
[1756815941695,1e-08,200.9,200.89,56.13894038]
[1756815941878,1e-08,200.9,200.89,58.1335052]
[1756815943281,1e-08,200.9,200.89,82.37802945]
[1756815943481,0.06,200.95,200.92,26.0]
[1756815943690,0.06,200.95,200.94,36.79109181]
[1756815943882,0.06,200.95,200.94,77.14109181]
[1756815944070,0.06,200.95,200.94,79.13535829]
[1756815944566,1e-08,200.95,200.94,53.13535829]
[1756815945581,1e-08,200.95,200.94,58.11196822]
[1756815945786,1e-08,200.95,200.94,71.70756223]
[1756815945963,1e-08,200.98,200.97,26.14216157]
[1756815946173,1e-08,200.98,200.97,76.45109181]
[1756815946393,1e-08,200.98,200.97,37.48109181]
[1756815946699,1e-08,200.98,200.97,77.14109181]
[1756815946879,1e-08,200.98,200.97,0.14216157]
[1756815947078,1e-08,200.98,200.97,50.45109181]
[1756815947279,1e-08,200.98,200.97,51.14109181]
[1756815947799,1e-08,200.98,200.97,56.11695885]
[1756815948174,1e-08,200.99,200.98,13.73775558]
[1756815948374,0.2,201.06,201.02,0.14216157]
[1756815948592,0.71,201.03,201.0,26.0]
[1756815948770,0.71,201.03,201.02,10.79109181]
[1756815948976,0.2,201.06,201.02,10.79109181]
[1756815949196,0.71,201.03,201.02,0.14216157]
[1756815949577,0.71,201.03,201.01,0.14216157]
[1756815949875,0.71,201.03,201.02,4.97462939]
[1756815950079,0.91,201.06,201.02,4.97462939]
[1756815950416,0.77,201.04,201.03,10.64893024]
[1756815950599,0.77,201.04,201.02,4.97462939]
[1756815950600,0.06,201.04,201.02,10.64893024]
[1756815950784,0.06,201.04,201.01,10.64893024]
[1756815950982,0.06,201.04,201.0,10.64893024]
[1756815951300,0.71,201.03,201.0,36.64893024]
[1756815951482,0.06,201.04,201.0,36.64893024]
[1756815951679,0.06,201.04,201.01,10.64893024]
[1756815951680,0.71,201.02,201.01,10.64893024]
[1756815954594,0.71,201.02,201.01,15.62380711]
[1756815954798,0.06,201.04,201.01,15.62380711]
[1756815954999,0.77,201.04,201.03,10.64893024]
[1756815956408,0.77,201.04,201.0,10.64893024]
[1756815956600,0.71,201.03,201.0,10.64893024]
[1756815956782,0.71,201.02,201.0,10.64893024]
[1756815957107,0.71,201.02,200.99,30.9753719]
[1756815957108,0.71,201.02,201.01,10.64893024]
[1756815958085,0.77,201.02,201.01,10.64893024]
[1756815958288,0.77,201.02,201.01,15.62380711]
[1756815958507,0.77,201.02,201.01,10.64893024]
[1756815959208,0.77,201.02,200.97,2.02396824]
[1756815959505,0.71,201.01,200.98,10.64893024]
[1756815959714,0.06,201.02,200.98,10.64893024]
[1756815959884,0.71,201.01,201.0,10.64893024]
[1756815960083,0.71,201.01,200.99,10.64893024]
[1756815960481,0.71,201.01,200.98,4.97544037]
[1756815960789,11.35893024,201.0,200.97,0.03]
[1756815961119,0.71,201.0,200.97,0.03]
[1756815961416,10.64893024,200.99,200.97,0.03]
[1756815961732,10.64893024,200.98,200.97,0.03]
[1756815961922,0.71,200.98,200.97,0.03]
[1756815962114,11.35893024,200.98,200.97,0.03]
[1756815962310,0.71,200.98,200.97,0.03]
[1756815962632,0.06,201.02,201.0,26.0]
[1756815962810,0.06,201.02,201.01,10.64893024]
[1756815963427,0.06,201.02,201.01,11.33893024]
[1756815963606,0.06,201.02,201.01,11.48109181]
[1756815964132,0.06,201.02,201.01,16.45596868]
[1756815966427,0.06,201.02,201.01,5.80703844]
[1756815966724,0.06,201.02,201.01,55.36596868]
[1756815966929,0.06,201.02,201.01,56.05596868]
[1756815967134,0.06,201.02,201.01,10.79109181]
[1756815967297,0.06,201.02,201.0,4.97509629]
[1756815967298,0.06,201.02,200.99,4.97530248]
[1756815967634,0.06,201.02,201.01,10.64893024]
[1756815967815,0.06,201.02,201.01,26.0]
[1756815968019,0.06,201.02,201.01,36.64893024]
[1756815969630,0.06,201.02,201.01,41.62380711]
[1756815970123,0.06,201.02,201.01,42.48596868]
[1756815971331,0.06,201.02,201.01,41.62380711]
[1756815971522,0.06,201.02,201.01,81.22380711]
[1756815971827,0.06,201.02,201.01,81.36596868]
[1756815972012,0.06,201.02,201.01,81.34596868]
[1756815972528,0.06,201.02,201.01,41.76596868]
[1756815972719,0.06,201.02,201.01,81.34596868]
[1756815973123,0.06,201.02,201.01,82.06596868]
[1756815973710,0.06,201.02,201.01,81.34596868]
[1756815973916,0.06,201.02,201.01,70.69703844]
[1756815974111,0.06,201.02,201.01,41.76596868]
[1756815974426,0.06,201.02,201.01,36.64893024]
[1756815975230,0.06,201.02,201.01,41.62380711]
[1756815975432,0.06,201.02,201.01,82.06596868]
[1756815975931,1e-08,201.02,201.01,96.15905037]
[1756815976108,1e-08,201.02,201.01,56.57905037]
[1756815976313,1e-08,201.02,201.01,96.15905037]
[1756815976723,1e-08,201.02,201.01,82.06596868]
[1756815976926,1e-08,201.02,201.01,71.41703844]
[1756815977126,1e-08,201.02,201.01,82.06596868]
[1756815980728,1e-08,201.02,201.01,31.11703844]
[1756815980927,1e-08,201.02,201.01,41.62380711]
[1756815981128,1e-08,201.02,201.01,70.67703844]
[1756815981333,1e-08,201.02,201.01,70.53487687]
[1756815981721,0.67000001,201.02,201.01,26.0]
[1756815981927,11.31893025,201.02,201.0,39.56]
[1756815982141,0.67,201.01,200.97,0.17216157]
[1756815982448,0.67,201.0,200.97,39.59]
[1756815982750,0.67,200.99,200.97,39.59]
[1756815982926,0.67,200.99,200.97,44.56581802]
[1756815984338,1e-08,201.02,200.97,44.56581802]
[1756815984339,0.67,200.98,200.97,0.03]
[1756815984540,0.67,200.98,200.97,26.03]
[1756815985039,0.67,201.0,200.97,31.00586704]
[1756815986045,1e-08,201.02,200.99,10.64893024]
[1756815986245,1e-08,201.02,201.0,50.20893024]
[1756815986430,1e-08,201.02,201.0,39.56]
[1756815986629,1e-08,201.02,201.0,50.20893024]
[1756815986839,1e-08,201.02,201.01,4.97487687]
[1756815987643,0.67000001,201.02,201.0,39.56]
[1756815987840,11.31893024,201.01,200.98,65.56]
[1756815988042,0.67,201.0,200.98,65.56]
[1756815988448,0.67,200.99,200.97,39.59]
[1756815988635,0.67,200.98,200.97,0.03]
[1756815989150,11.31893024,200.98,200.97,0.03]
[1756815989656,0.67,200.98,200.97,0.03]
[1756815989819,11.31893024,200.98,200.97,0.03]
[1756815990476,30.17446685,200.98,200.97,0.03]
[1756815992788,14.54991715,200.98,200.97,0.03]
[1756815992964,11.60325338,200.98,200.97,0.03]
[1756815993281,30.17446685,200.98,200.97,0.03]
[1756815995583,26.67171259,200.98,200.97,0.03]
[1756815996359,14.54991715,200.98,200.97,0.03]
[1756815996561,1e-08,201.02,200.98,0.14216157]
[1756815996790,1e-08,201.02,201.01,7.14617598]
[1756815997083,1e-08,201.02,201.01,7.28833755]
[1756815997294,1e-08,201.02,201.01,8.00833755]
[1756815998100,1e-08,201.02,201.01,7.86617598]
[1756815998296,1e-08,201.02,201.01,0.72]
[1756815998671,1e-08,201.02,201.01,12.84105285]
[1756815998970,1e-08,201.02,201.01,12.12105285]
[1756815999167,1e-08,201.02,201.01,12.80105285]
[1756815999885,1e-08,201.02,201.01,12.94321442]
[1756816000679,1e-08,201.02,201.01,5.79703844]
[1756816000887,1e-08,201.02,201.01,12.94321442]
[1756816001175,1e-08,201.02,201.01,12.12105285]
[1756816001378,1e-08,201.02,201.01,12.80105285]
[1756816001871,1e-08,201.02,201.01,4.97487687]
[1756816002274,1e-08,201.02,200.99,7.14617598]
[1756816002488,1e-08,201.02,201.0,4.97512437]
[1756816002892,1e-08,201.02,200.97,0.03]
[1756816003095,7.43049912,200.98,200.97,0.03]
[1756816003288,8.13049912,200.98,200.97,0.03]
[1756816003597,7.84617598,200.98,200.97,0.03]
[1756816004091,7.14617598,200.99,200.97,0.03]
[1756816004281,0.7,200.98,200.97,0.03]
[1756816004488,7.84617598,200.98,200.97,0.03]
[1756816005398,7.14617598,200.99,200.97,0.03]
[1756816005588,0.98432314,200.99,200.97,0.03]
[1756816005972,8.13049912,200.99,200.97,0.03]
[1756816006706,8.13049912,200.98,200.97,0.03]
[1756816006980,7.84617598,200.98,200.97,0.03]
[1756816007184,0.28432314,200.99,200.97,0.03]
[1756816007583,0.98432314,200.99,200.97,0.03]
[1756816007907,8.13049912,200.99,200.97,0.03]
[1756816008267,0.7,200.98,200.97,0.03]
[1756816008798,8.13049912,200.98,200.97,0.03]
[1756816010503,21.72609313,200.98,200.97,0.03]
[1756816011481,8.13049912,200.98,200.97,0.03]
[1756816011678,0.7,201.01,200.97,0.03]
[1756816011897,7.14617599,201.02,200.97,0.71]
[1756816012200,0.70000001,201.02,200.98,7.14617598]
[1756816012688,0.98432315,201.02,200.98,7.14617598]
[1756816012889,0.98432315,201.02,200.99,4.9753719]
[1756816013092,0.7,201.01,200.99,4.9753719]
[1756816013400,7.43049913,201.02,200.99,4.9753719]
[1756816013782,0.7,201.01,200.99,4.9753719]
[1756816013982,7.43049913,201.02,200.99,4.9753719]
[1756816013983,0.7,201.0,200.99,4.9753719]
[1756816014485,0.28432315,201.02,200.99,4.9753719]
[1756816014682,7.84617598,201.01,200.99,4.9753719]
[1756816015307,7.84617598,201.01,200.97,0.03]
[1756816015308,1e-08,201.02,201.0,0.68]
[1756816015476,1e-08,201.02,201.01,7.82617598]
[1756816016003,1e-08,201.02,201.01,0.68]
[1756816016385,1e-08,201.02,201.01,7.82617598]
[1756816017205,1e-08,201.02,201.01,0.68]
[1756816017393,1e-08,201.02,201.01,12.80105285]
[1756816018183,1e-08,201.02,201.01,4.97487687]
[1756816018488,7.84617599,201.02,200.97,26.03]
[1756816018690,7.14617598,201.01,200.97,0.71]
[1756816018907,7.84617598,201.01,200.97,0.03]
[1756816019090,7.84617598,201.01,200.97,0.71]
[1756816019091,7.14617598,201.01,200.97,0.71]
[1756816019411,0.7,201.01,200.97,5.00586704]
[1756816019608,7.14617599,201.02,200.97,5.00586704]
[1756816019784,7.84617598,201.01,200.97,31.00586704]
[1756816020290,7.14617598,201.0,200.97,26.03]
[1756816020490,7.14617598,201.0,200.97,26.71]
[1756816020690,7.14617598,201.01,200.97,26.03]
[1756816020902,7.14617598,201.01,200.97,26.71]
[1756816021301,1e-08,201.02,200.98,0.68]
[1756816021497,1e-08,201.02,200.99,4.9753719]
[1756816021692,7.14617599,201.02,200.99,4.9753719]
[1756816022814,7.84617599,201.02,200.99,4.9753719]
[1756816023015,1e-08,201.02,201.0,7.82617598]
[1756816023313,1e-08,201.02,200.99,12.12154788]
[1756816023512,1e-08,201.02,200.99,4.9753719]
[1756816024012,1e-08,201.02,200.99,5.6553719]
[1756816024210,1e-08,201.02,200.99,12.80154788]
[1756816024519,1e-08,201.02,201.01,7.14617598]
[1756816024820,1e-08,201.02,201.0,26.0]
[1756816024997,1e-08,201.02,201.01,33.82617598]
[1756816025204,1e-08,201.02,201.01,33.96833755]
[1756816025797,1e-08,201.02,201.01,38.94321442]
[1756816026001,1e-08,201.04,201.01,38.94321442]
[1756816026310,1e-08,201.04,201.03,7.28833755]
[1756816026816,0.06,201.12,201.07,0.14216157]
[1756816027115,0.06,201.12,201.08,0.68]
[1756816027322,0.76,201.12,201.08,7.14617598]
[1756816027616,0.06,201.12,201.09,7.14617598]
[1756816027792,0.06,201.12,201.1,12.1188264]
[1756816028001,0.06,201.12,201.11,7.14617598]
[1756816028606,0.06,201.12,201.1,4.97265042]
[1756816028812,0.06,201.12,201.11,7.14617598]
[1756816029321,0.06,201.12,201.11,7.85617598]
[1756816029915,0.06,201.12,201.11,12.82857914]
[1756816030312,0.06,201.12,201.11,4.97240316]
[1756816030916,0.06,201.12,201.11,12.11857914]
[1756816031442,1.00432314,201.12,201.06,26.71]
[1756816031731,7.14617598,201.1,201.06,4.97350049]
[1756816031915,7.80617598,201.1,201.05,12.12006307]
[1756816032114,7.80617598,201.1,201.05,12.83006307]
[1756816032305,0.66,201.1,201.06,7.14617598]
[1756816032622,0.28432314,201.11,201.07,7.85617598]
[1756816032805,0.94432314,201.11,201.06,7.14617598]
[1756816033004,0.28432314,201.11,201.07,0.71]
[1756816033521,7.43049912,201.11,201.07,0.71]
[1756816033723,0.28432314,201.11,201.07,7.85617598]
[1756816033924,0.28432314,201.11,201.08,4.97314501]
[1756816034153,0.06,201.12,201.08,18.11600755]
[1756816034445,0.06,201.12,201.11,33.14617598]
[1756816034609,0.06,201.12,201.11,33.28833755]
[1756816034809,0.06,201.12,201.11,33.99833755]
[1756816036113,0.06,201.14,201.12,0.14216157]
[1756816036315,0.06,201.14,201.13,7.85617598]
[1756816036718,0.06,201.14,201.13,0.71]
[1756816036924,0.06,201.14,201.13,7.85617598]
[1756816037326,0.06,201.14,201.13,0.71]
[1756816037534,0.06,201.14,201.13,7.85617598]
[1756816038110,1e-08,201.14,201.13,12.97024626]
[1756816038734,0.06,201.15,201.13,12.97024626]
[1756816038941,1e-08,201.15,201.14,0.71]
[1756816039138,1e-08,201.15,201.14,7.85617598]
[1756816039920,1e-08,201.15,201.14,47.37617598]
[1756816040319,1e-08,201.15,201.14,52.3478375]
[1756816041144,1e-08,201.15,201.14,12.8278375]
[1756816041314,1e-08,201.15,201.14,52.3278375]
[1756816042618,0.06,201.17,201.16,26.0]
[1756816042619,1e-08,201.17,201.16,26.0]
[1756816042929,0.06,201.22,201.17,26.14216157]
[1756816043128,0.06,201.22,201.19,33.28833755]
[1756816043313,0.06,201.22,201.19,72.64617598]
[1756816044041,0.06,201.22,201.19,65.5]
[1756816044243,0.06,201.22,201.19,72.64617598]
[1756816044541,0.06,201.22,201.19,71.18042596]
[1756816044742,0.06,201.22,201.19,78.32660194]
[1756816044943,0.06,201.22,201.19,77.61660194]
[1756816045545,0.06,201.22,201.19,30.97042596]
[1756816045839,0.06,201.22,201.19,38.11660194]
[1756816046536,0.72,201.22,201.19,4.97042596]
[1756816046841,0.06,201.22,201.18,39.5]
[1756816047045,0.72,201.22,201.18,46.64617598]
[1756816047744,0.66,201.19,201.17,4.97092011]
[1756816047943,0.66,201.21,201.17,4.97092011]
[1756816048143,7.20617598,201.22,201.17,12.11709609]
[1756816048339,0.86,201.2,201.17,12.11709609]
[1756816049050,0.66,201.19,201.17,4.97092011]
[1756816049543,0.2,201.2,201.17,12.11709609]
[1756816049743,0.86,201.2,201.17,12.11709609]
[1756816050546,0.86,201.2,201.17,4.97092011]
[1756816050847,0.86,201.2,201.17,12.11709609]
[1756816051566,0.86,201.2,201.17,4.97092011]
[1756816051881,0.2,201.2,201.17,4.97092011]
[1756816052043,0.66,201.19,201.17,4.97092011]
[1756816052568,0.66,201.18,201.16,4.97113522]
[1756816053363,0.66,201.17,201.16,4.97113522]
[1756816054763,7.80617598,201.17,201.13,0.03]
[1756816054937,0.66,201.17,201.13,5.00190695]
[1756816055136,7.14617598,201.16,201.13,5.00190695]
[1756816055355,0.66,201.17,201.13,5.00190695]
[1756816055536,2.85211531,201.16,201.13,5.00190695]
[1756816055733,3.51211531,201.16,201.13,5.00190695]
[1756816056041,2.85211531,201.16,201.13,5.00190695]
[1756816056459,0.66,201.15,201.13,5.00190695]
[1756816056657,3.51211531,201.15,201.13,0.03]
[1756816056966,0.66,201.15,201.13,0.03]
[1756816058064,4.45645953,201.14,201.13,0.03]
[1756816058261,5.11645953,201.15,201.13,0.03]
[1756816058641,5.11645953,201.14,201.13,0.03]
[1756816058939,0.7,201.17,201.13,0.03]
[1756816059148,0.28432314,201.18,201.14,4.45645953]
[1756816059560,0.28432314,201.18,201.14,5.17645953]
[1756816060077,0.2,201.2,201.16,4.45645953]
[1756816060384,4.65645953,201.2,201.16,0.72]
[1756816060555,5.35645953,201.2,201.15,26.0]
[1756816060755,5.15645953,201.19,201.16,4.97116723]
[1756816060966,5.15645953,201.18,201.16,4.97116723]
[1756816061656,10.61842375,201.19,201.16,4.97116723]
[1756816061962,10.81842375,201.2,201.16,5.69116723]
[1756816062168,10.81842375,201.2,201.17,0.72]
[1756816062755,10.81842375,201.2,201.18,4.97067302]
[1756816063370,0.2,201.2,201.19,0.72]
[1756816063680,0.2,201.2,201.19,11.33842375]
[1756816064257,0.2,201.2,201.19,0.72]
[1756816064974,0.2,201.2,201.19,5.69042596]
[1756816065750,0.2,201.2,201.19,16.30884971]
[1756816065951,0.2,201.2,201.19,16.45101128]
[1756816066156,0.06,201.22,201.19,55.93101128]
[1756816066383,0.06,201.22,201.21,36.76058532]
[1756816066558,0.06,201.22,201.21,26.14216157]
[1756816066753,0.06,201.22,201.2,26.0]
[1756816066953,0.06,201.22,201.21,30.96993191]
[1756816067166,0.06,201.22,201.21,42.45051723]
[1756816067367,0.06,201.22,201.21,41.73051723]
[1756816067659,0.06,201.22,201.21,42.45051723]
[1756816068959,0.06,201.22,201.21,71.31209348]
[1756816069368,0.06,201.22,201.21,31.83209348]
[1756816069573,0.06,201.22,201.21,70.59209348]
[1756816069880,11.37842375,201.22,201.19,4.97030989]
[1756816070081,10.61842375,201.21,201.19,4.97030989]
[1756816070595,10.67842375,201.22,201.19,4.97030989]
[1756816070969,0.06,201.22,201.2,0.72]
[1756816071167,0.06,201.22,201.21,4.96993191]
[1756816072382,0.06,201.22,201.2,4.97017892]
[1756816072981,11.37842375,201.22,201.2,4.97017892]
[1756816073276,0.06,201.22,201.21,26.72]
[1756816074286,0.06,201.22,201.21,26.0]
[1756816074674,0.06,201.22,201.21,31.68993191]
[1756816074861,0.06,201.22,201.21,81.91051723]
[1756816076263,0.06,201.22,201.21,70.42993191]
[1756816076993,0.06,201.22,201.21,71.14993191]
[1756816077784,0.06,201.22,201.21,70.42993191]
[1756816078114,0.06,201.22,201.21,71.14993191]
[1756816080399,0.06,201.22,201.21,81.91051723]
[1756816080603,0.06,201.24,201.21,81.91051723]
[1756816080792,0.06,201.24,201.23,10.61842375]
[1756816081101,0.06,201.24,201.23,50.07842375]
[1756816081281,0.06,201.24,201.23,55.7678617]
[1756816081683,0.06,201.25,201.24,0.14216157]
[1756816081887,0.06,201.25,201.24,11.48058532]
[1756816082091,1e-08,201.25,201.24,11.48058532]
[1756816082890,1e-08,201.25,201.24,50.92058532]
[1756816083300,1e-08,201.25,201.24,55.88977633]
[1756816083507,1e-08,201.25,201.24,60.67993226]
[1756816085496,1e-08,201.28,201.27,26.14216157]
[1756816085709,1e-08,201.28,201.27,70.03015593]
[1756816086015,1e-08,201.28,201.27,70.75015593]
[1756816086308,1e-08,201.28,201.27,72.74084944]
[1756816086696,1e-08,201.28,201.27,77.70929978]
[1756816088106,1e-08,201.28,201.27,75.71860627]
[1756816089120,1e-08,201.28,201.27,4.96845034]
[1756816089293,0.68000001,201.28,201.27,4.96845034]
[1756816089497,0.68000001,201.28,201.27,44.40845034]
[1756816089693,0.68000001,201.28,201.27,4.96845034]
[1756816089896,0.68000001,201.28,201.27,44.40845034]
[1756816090295,0.68000001,201.28,201.27,30.96845034]
[1756816090531,5.12799437,201.28,201.27,30.96845034]
[1756816090733,5.12799437,201.28,201.27,65.44]
[1756816091023,0.68000001,201.28,201.27,4.96845034]
[1756816091320,1e-08,201.28,201.27,4.96845034]
[1756816091514,4.44799437,201.28,201.27,44.40845034]
[1756816091712,5.12799437,201.28,201.27,44.40845034]
[1756816091899,0.68000001,201.28,201.27,44.40845034]
[1756816093134,1e-08,201.28,201.27,44.40845034]
[1756816093496,0.68000001,201.28,201.27,44.40845034]
[1756816093700,1e-08,201.28,201.27,44.40845034]
[1756816093899,1e-08,201.28,201.27,48.8564447]
[1756816094106,1e-08,201.28,201.27,44.40845034]
[1756816094716,1e-08,201.28,201.26,26.0]
[1756816094912,5.12799436,201.27,201.2,0.7]
[1756816095109,0.68,201.27,201.21,39.42]
[1756816095420,0.68,201.27,201.24,26.0]
[1756816095725,5.12799436,201.27,201.25,65.42]
[1756816095899,0.68,201.26,201.25,65.42]
[1756816096934,0.68,201.26,201.25,70.38894409]
[1756816097132,1e-08,201.28,201.25,70.38894409]
[1756816097444,0.68000001,201.28,201.25,70.38894409]
[1756816097623,0.68,201.27,201.25,70.38894409]
[1756816098537,0.68,201.27,201.25,65.42]
[1756816098833,4.44799437,201.28,201.25,70.38883927]
[1756816099036,5.12799436,201.27,201.22,30.59015593]
[1756816099234,0.68,201.26,201.25,26.0]
[1756816099445,5.12799436,201.26,201.25,39.42]
[1756816100313,5.12799436,201.26,201.23,4.96943795]
[1756816100521,0.68,201.25,201.24,39.42]
[1756816100736,5.12799436,201.25,201.22,26.0]
[1756816100910,0.68,201.24,201.23,39.42]
[1756816101537,0.68,201.26,201.23,39.42]
[1756816101833,0.68,201.25,201.23,39.42]
[1756816102043,5.12799436,201.25,201.23,39.42]
[1756816102353,0.68,201.24,201.23,39.42]
[1756816102649,0.68,201.24,201.2,0.03]
[1756816102824,4.44799436,201.21,201.2,5.00016536]
[1756816103145,5.12799436,201.21,201.2,5.00016536]
[1756816103730,0.06,201.26,201.2,49.53815972]
[1756816103944,0.06,201.26,201.23,26.0]
[1756816104252,0.06,201.26,201.24,39.42]
[1756816104411,0.74,201.26,201.24,39.42]
[1756816104616,0.74,201.26,201.25,4.96894409]
[1756816104924,0.06,201.26,201.25,4.96894409]
[1756816105340,0.06,201.26,201.25,9.41693845]
[1756816105537,0.06,201.26,201.25,4.96894409]
[1756816110446,0.06,201.26,201.24,48.8371405]
[1756816110641,0.06,201.26,201.24,44.38914614]
[1756816110836,0.06,201.26,201.24,4.96914614]
[1756816111043,5.12799436,201.25,201.21,26.0]
[1756816111223,4.44799436,201.23,201.2,44.42017892]
[1756816111423,4.44799436,201.21,201.2,0.03]
[1756816111623,5.12799436,201.21,201.2,0.03]
[1756816113232,23.45590587,201.21,201.2,0.03]
[1756816113442,13.87991715,201.2,201.18,0.03]
[1756816113746,13.87991715,201.2,201.17,0.03]
[1756816113747,13.59559401,201.18,201.17,0.03]
[1756816113919,18.04358837,201.18,201.17,0.03]
[1756816114121,18.72358837,201.18,201.17,0.03]
[1756816114447,5.12799436,201.18,201.17,0.03]
[1756816115025,5.12799436,201.18,201.15,5.00137421]
[1756816115026,0.28432314,201.17,201.15,0.03]
[1756816115350,5.4123175,201.18,201.12,0.03]
[1756816115351,0.14216157,201.14,201.12,0.03]
[1756816115534,58.14358837,201.13,201.12,0.03]
[1756816116535,63.11549708,201.13,201.12,0.03]
[1756816116833,62.59158273,201.13,201.12,0.03]
[1756816117254,39.73775558,201.09,201.08,0.03]
[1756816117450,13.73775558,201.08,201.0,7.77994291]
[1756816117626,0.28432314,201.05,201.0,5.78647153]
[1756816117830,0.68,201.07,201.01,0.67]
[1756816118037,7.14155818,201.02,201.01,0.67]
[1756816118242,0.68,201.07,201.01,0.67]
[1756816118243,7.14155818,201.03,201.01,0.67]
[1756816118430,7.14155818,201.04,201.02,4.97462939]
[1756816118949,7.14155818,201.03,201.02,4.97462939]
[1756816119769,7.14155818,201.03,201.0,10.76154994]
[1756816120056,7.14155818,201.01,201.0,10.76154994]
[1756816120229,32.42745284,201.17,201.0,10.76154994]
[1756816120434,7.14155818,201.04,201.0,11.43154994]
[1756816120644,7.14155818,201.02,201.0,10.76154994]
[1756816121353,0.72,201.06,201.01,0.67]
[1756816121854,7.14155818,201.03,201.01,0.67]
[1756816122630,0.72,201.06,201.02,4.97462939]
[1756816122933,7.14155818,201.06,201.02,17.41120286]
[1756816123133,7.14155818,201.06,201.03,0.67]
[1756816123871,1.00432314,201.09,201.02,17.41120286]
[1756816123872,7.14155818,201.07,201.04,0.67]
[1756816124640,7.14155818,201.07,201.02,17.41120286]
[1756816124840,7.14155818,201.06,201.03,0.7]
[1756816126146,7.14155818,201.06,201.04,4.9741345]
[1756816126780,7.14155818,201.06,201.03,0.03]
[1756816126967,7.14155818,201.06,201.03,31.00433414]
[1756816129270,7.14155818,201.06,201.03,31.67433414]
[1756816129451,7.14155818,201.06,201.03,26.03]
[1756816129773,7.14155818,201.06,201.03,26.7]
[1756816129961,7.14155818,201.06,201.03,31.67427879]
[1756816130146,7.14155818,201.06,201.03,31.00427879]
[1756816130572,7.14155818,201.06,201.03,31.67427879]
[1756816130773,0.72,201.08,201.03,31.67427879]
[1756816131563,7.14155818,201.04,201.03,0.03]
[1756816131887,0.72,201.06,201.03,0.03]
[1756816132180,7.14155818,201.04,201.03,0.03]
[1756816134759,0.72,201.05,201.03,0.03]
[1756816134960,7.14155818,201.04,201.03,0.03]
[1756816135269,7.86155818,201.04,201.03,0.03]
[1756816136672,8.14588132,201.04,201.03,0.03]
[1756816137588,0.28432314,201.04,201.03,0.03]
[1756816137790,8.14588132,201.04,201.03,0.03]
[1756816137977,39.44,201.06,201.03,0.03]
[1756816138285,7.14155818,201.04,201.03,0.03]
[1756816138767,7.14155818,201.05,201.03,0.03]
[1756816139469,2.85497797,201.05,201.03,0.03]
[1756816140276,136.65497797,201.07,201.04,0.67]
[1756816141586,2.85497797,201.06,201.03,5.00438193]
[1756816142774,3.57497797,201.06,201.03,5.00438193]
[1756816142968,2.85497797,201.05,201.03,5.00438193]
[1756816143786,3.57497797,201.06,201.03,5.00438193]
[1756816144085,2.85497797,201.06,201.03,5.00438193]
[1756816144285,2.85497797,201.05,201.03,5.00438193]